bitfinex/quotes_BTCUSD_20241211
["timestamp","ask_amount","ask_price","bid_price","bid_amount"]
[1733946933730,0.18330844,101080.0,101060.0,0.00055223]
[1733946934150,0.18130844,101080.0,101060.0,0.00055223]
[1733946934357,0.08099999,101080.0,101060.0,0.00055223]
[1733946934557,0.002,101080.0,101060.0,0.18016068]
[1733946935043,0.002,101080.0,101060.0,0.33016068]
[1733946935334,0.09923567,101090.0,101060.0,0.33016068]
[1733946935725,0.002,101080.0,101060.0,0.33016068]
[1733946935928,0.09923567,101090.0,101060.0,0.33016068]
[1733946936359,0.002,101080.0,101060.0,0.33033268]
[1733946936723,0.002,101080.0,101060.0,0.23002423]
[1733946937537,0.10123567,101090.0,101060.0,0.23002423]
[1733946937733,0.20554412,101090.0,101060.0,0.23002423]
[1733946937939,0.60123312,101090.0,101060.0,0.23002423]
[1733946938140,0.40338712,101090.0,101060.0,0.23002423]
[1733946938341,0.002,101080.0,101060.0,0.23002423]
[1733946939232,0.10523567,101090.0,101060.0,0.33033268]
[1733946939390,0.03623566,101090.0,101060.0,0.33033268]
[1733946939597,0.002,101080.0,101060.0,0.23002423]
[1733946939866,0.13254411,101080.0,101060.0,0.00072423]
[1733946940076,0.40641011,101080.0,101060.0,0.00072423]
[1733946940285,0.75428311,101080.0,101060.0,0.00072423]
[1733946940512,0.55641011,101080.0,101060.0,0.00072423]
[1733946940721,0.35854411,101080.0,101060.0,0.00072423]
[1733946941341,0.55640811,101080.0,101060.0,0.00072423]
[1733946943033,0.35854411,101080.0,101060.0,0.00072423]
[1733946944456,0.4874091,101080.0,101060.0,0.00072423]
[1733946944883,0.2895441,101080.0,101060.0,0.00072423]
[1733946945892,0.15,101080.0,101060.0,0.07712423]
[1733946946350,0.15,101080.0,101060.0,0.00072423]
[1733946946351,0.67627211,101080.0,101060.0,0.00072423]
[1733946946567,0.75607211,101080.0,101060.0,0.00072423]
[1733946946885,0.95394511,101080.0,101060.0,0.00072423]
[1733946947050,0.75607211,101080.0,101060.0,0.00072423]
[1733946948042,0.28054411,101070.0,101060.0,0.00072423]
[1733946948275,0.47842611,101070.0,101060.0,0.00072423]
[1733946949125,0.28054411,101070.0,101060.0,0.00072423]
[1733946949345,0.47842611,101070.0,101060.0,0.00572423]
[1733946950405,0.37811766,101070.0,101060.0,0.00572423]
[1733946950759,0.42561766,101070.0,101060.0,0.00572423]
[1733946951049,0.51869045,101070.0,101060.0,0.00572423]
[1733946951472,0.22773566,101070.0,101060.0,0.00572423]
[1733946951687,0.42561766,101070.0,101060.0,0.00572423]
[1733946952301,0.51869045,101070.0,101060.0,0.00572423]
[1733946952735,0.5341713,101070.0,101060.0,0.00572423]
[1733946954367,0.4866713,101070.0,101060.0,0.00572423]
[1733946955646,0.03023566,101060.0,101050.0,0.57194341]
[1733946957304,0.52036729,101070.0,101050.0,0.57194341]
[1733946957506,0.49736729,101070.0,101050.0,0.57194341]
[1733946957717,0.49736729,101070.0,101050.0,0.57594341]
[1733946957939,0.001,101060.0,101050.0,0.57694341]
[1733946958142,0.03123566,101060.0,101050.0,0.57694341]
[1733946958347,0.03123566,101060.0,101050.0,0.57294341]
[1733946958552,0.03023566,101060.0,101050.0,0.57394341]
[1733946958759,0.03023566,101060.0,101050.0,0.57494341]
[1733946958961,0.03023566,101060.0,101050.0,0.57394341]
[1733946959171,0.03023566,101060.0,101050.0,0.57194341]
[1733946959379,0.40892583,101080.0,101050.0,0.57594341]
[1733946959612,0.52438857,101080.0,101050.0,0.40519564]
[1733946960116,0.52438857,101080.0,101050.0,0.40528164]
[1733946960389,0.01524029,101080.0,101050.0,0.50559009]
[1733946960588,0.16524029,101080.0,101050.0,0.50559009]
[1733946961010,0.01524029,101080.0,101050.0,0.50559009]
[1733946961361,0.00303467,101070.0,101050.0,0.50159009]
[1733946962520,0.01524029,101080.0,101070.0,0.0768]
[1733946964304,0.627369,101100.0,101070.0,0.0768]
[1733946964520,0.002,101080.0,101070.0,0.0768]
[1733946965109,0.199863,101080.0,101060.0,0.22570845]
[1733946965262,0.347848,101090.0,101060.0,0.22570845]
[1733946965465,0.01311279,101070.0,101060.0,0.22570845]
[1733946965707,0.01311279,101070.0,101060.0,0.62279725]
[1733946967051,0.002,101080.0,101060.0,0.62279725]
[1733946967427,0.54511487,101100.0,101060.0,0.37570845]
[1733946967772,0.54511487,101100.0,101060.0,0.37770845]
[1733946967980,0.54511487,101100.0,101060.0,0.37570845]
[1733946968368,0.01311279,101070.0,101060.0,0.37570845]
[1733946968577,0.01311279,101070.0,101060.0,1.02229635]
[1733946968774,0.01527442,101100.0,101070.0,0.2304]
[1733946968982,0.009,101100.0,101070.0,0.33070845]
[1733946969204,0.624727,101110.0,101070.0,0.33070845]
[1733946969403,0.005,101100.0,101070.0,0.33070845]
[1733946969855,0.72503445,101110.0,101070.0,0.33070845]
[1733946970087,0.01311279,101080.0,101070.0,0.33070845]
[1733946970297,0.003,101100.0,101070.0,0.57776405]
[1733946970499,0.01311279,101080.0,101070.0,0.33070845]
[1733946970709,0.01311279,101070.0,101060.0,0.132]
[1733946970921,0.426951,101090.0,101060.0,0.47939735]
[1733946971129,0.426951,101090.0,101060.0,0.23030845]
[1733946971386,0.426951,101090.0,101070.0,0.002]
[1733946971776,0.426951,101090.0,101060.0,0.23030845]
[1733946972010,0.001,101070.0,101060.0,0.23230845]
[1733946972206,0.01411279,101070.0,101060.0,0.47939755]
[1733946972567,0.001,101070.0,101060.0,0.47939755]
[1733946972906,0.01311279,101070.0,101060.0,0.62739755]
[1733946973128,0.01311279,101070.0,101060.0,0.77739755]
[1733946973549,0.01311279,101070.0,101060.0,0.77839755]
[1733946974062,0.01311279,101070.0,101060.0,1.02589755]
[1733946974472,0.545668,101100.0,101060.0,1.02589755]
[1733946974685,0.743508,101100.0,101070.0,0.10030845]
[1733946975633,0.72630945,101090.0,101070.0,0.247]
[1733946975833,0.197863,101080.0,101050.0,0.64868164]
[1733946976036,0.49604645,101080.0,101050.0,0.64868164]
[1733946976237,0.197886,101070.0,101050.0,0.40118164]
[1733946977020,0.25030845,101080.0,101050.0,0.40118164]
[1733946978048,0.45417145,101080.0,101050.0,0.40218164]
[1733946978257,0.001,101070.0,101050.0,0.40218164]
[1733946978821,0.45417145,101080.0,101050.0,0.40218164]
[1733946979048,0.45717145,101080.0,101050.0,0.40218164]
[1733946979445,0.551733,101080.0,101050.0,0.50249009]
[1733946979677,0.353863,101080.0,101050.0,0.50249009]
[1733946979884,0.551734,101080.0,101050.0,0.50249009]
[1733946980095,0.001,101070.0,101050.0,0.50249009]
[1733946980304,0.001,101070.0,101050.0,0.50149009]
[1733946980722,0.003,101070.0,101050.0,0.50149009]
[1733946981361,0.003,101070.0,101050.0,0.74899009]
[1733946981743,0.002,101070.0,101050.0,0.74899009]
[1733946982163,0.54402203,101070.0,101050.0,0.57258164]
[1733946982341,0.84222848,101070.0,101050.0,0.32508164]
[1733946982547,0.15,101060.0,101050.0,0.32508164]
[1733946982743,0.347902,101060.0,101050.0,0.32508164]
[1733946983307,0.15,101060.0,101050.0,0.32508164]
[1733946983641,0.15,101060.0,101050.0,0.32708164]
[1733946984431,0.323602,101060.0,101050.0,0.32708164]
[1733946984586,0.1257,101060.0,101050.0,0.32708164]
[1733946984818,0.323602,101060.0,101050.0,0.32908164]
[1733946985022,0.0771,101060.0,101050.0,0.32908164]
[1733946985455,0.0771,101060.0,101050.0,0.32708164]
[1733946985797,0.0781,101060.0,101050.0,0.32708164]
[1733946986335,0.0781,101060.0,101050.0,0.32508164]
[1733946986759,0.0801,101060.0,101050.0,0.32508164]
[1733946987156,0.59483847,101060.0,101050.0,0.32508164]
[1733946987633,0.16109999,101060.0,101050.0,0.32508164]
[1733946988164,0.0801,101060.0,101050.0,0.32508164]
[1733946988386,0.16109999,101060.0,101050.0,0.32508164]
[1733946988772,0.0801,101060.0,101050.0,0.32508164]
[1733946989466,0.10699999,101060.0,101050.0,0.32508164]
[1733946989886,0.026,101060.0,101050.0,0.32508164]
[1733946990738,0.10699999,101060.0,101050.0,0.32508164]
[1733946991155,0.026,101060.0,101050.0,0.32508164]
[1733946991556,0.10699999,101060.0,101050.0,0.32508164]
[1733946992706,0.026,101060.0,101050.0,0.32508164]
[1733946993395,0.003,101060.0,101050.0,0.32508164]
[1733946994404,0.002925,101060.0,101050.0,0.32508164]
[1733946994829,0.003011,101060.0,101050.0,0.32508164]
[1733946998823,8.6e-05,101060.0,101050.0,0.75231779]
[1733946999361,0.21298433,101080.0,101050.0,0.75231779]
[1733946999586,0.545705,101090.0,101050.0,0.75231779]
[1733946999587,0.75867833,101090.0,101050.0,0.50519009]
[1733946999788,0.21297933,101080.0,101050.0,0.50519009]
[1733947000406,0.21297933,101080.0,101050.0,0.50819009]
[1733947000764,0.21297933,101080.0,101050.0,0.50519009]
[1733947000972,0.41085333,101080.0,101050.0,0.50519009]
[1733947001176,0.41885333,101080.0,101050.0,0.50619009]
[1733947002150,0.41885033,101080.0,101050.0,0.50619009]
[1733947003181,0.61672533,101080.0,101050.0,0.50619009]
[1733947003395,0.51915878,101080.0,101050.0,0.40588164]
[1733947003597,0.10830845,101080.0,101050.0,0.40588164]
[1733947003840,0.32128678,101080.0,101050.0,0.40588164]
[1733947004871,0.32128678,101080.0,101050.0,0.40618164]
[1733947005489,0.50404245,101080.0,101050.0,0.40618164]
[1733947005695,0.32128678,101080.0,101050.0,0.40618164]
[1733947006326,0.023,101070.0,101050.0,0.40618164]
[1733947007497,0.023,101070.0,101050.0,0.40518164]
[1733947007731,0.023,101070.0,101060.0,0.082]
[1733947008447,0.025,101070.0,101060.0,0.082]
[1733947008671,0.002,101070.0,101060.0,0.082]
[1733947009056,0.002,101070.0,101060.0,0.1316]
[1733947009486,8.6e-05,101080.0,101060.0,0.1316]
[1733947009694,0.023086,101080.0,101060.0,0.1316]
[1733947009865,0.002,101070.0,101060.0,0.1316]
[1733947010441,0.53406733,101100.0,101060.0,0.47901415]
[1733947010644,0.002,101070.0,101060.0,0.23190845]
[1733947010847,0.002,101070.0,101060.0,0.47901145]
[1733947011372,0.19785,101090.0,101060.0,0.47901145]
[1733947011625,0.19785,101090.0,101060.0,0.23290845]
[1733947011897,0.395704,101090.0,101060.0,0.23290845]
[1733947012598,0.593558,101090.0,101060.0,0.23290845]
[1733947012822,0.197864,101080.0,101060.0,0.23190845]
[1733947013288,0.001,101070.0,101060.0,0.23190845]
[1733947013513,0.397704,101090.0,101060.0,0.47901075]
[1733947013732,0.402704,101090.0,101060.0,0.23290845]
[1733947013956,0.402704,101090.0,101060.0,0.23190845]
[1733947013957,0.197864,101080.0,101060.0,0.23190845]
[1733947014178,0.593561,101090.0,101060.0,0.23190845]
[1733947014422,0.52556099,101090.0,101060.0,0.23190845]
[1733947014672,0.395711,101090.0,101060.0,0.23190845]
[1733947014928,0.202854,101090.0,101060.0,0.23290845]
[1733947015189,0.202854,101090.0,101060.0,0.1326]
[1733947015190,0.400711,101090.0,101060.0,0.1326]
[1733947015464,0.59857,101090.0,101060.0,0.1326]
[1733947015707,0.197863,101080.0,101060.0,0.1326]
[1733947015934,0.598569,101090.0,101060.0,0.1326]
[1733947016182,0.197864,101080.0,101060.0,0.1326]
[1733947016837,0.49604945,101080.0,101060.0,0.083]
[1733947017082,0.69392845,101080.0,101060.0,0.082]
[1733947017299,0.49604945,101080.0,101060.0,0.082]
[1733947017519,0.49704945,101080.0,101060.0,0.082]
[1733947018133,0.10130845,101080.0,101060.0,0.082]
[1733947018659,0.10423976,101080.0,101060.0,0.082]
[1733947018838,0.30210276,101080.0,101060.0,0.082]
[1733947019372,0.39965731,101080.0,101060.0,0.082]
[1733947020357,0.20179431,101080.0,101060.0,0.082]
[1733947021145,0.57757876,101080.0,101050.0,0.40098164]
[1733947021386,0.57757776,101080.0,101050.0,0.40098164]
[1733947022160,0.00393131,101080.0,101060.0,0.0758]
[1733947023089,0.00293131,101080.0,101060.0,0.0758]
[1733947023461,0.00393131,101080.0,101060.0,0.22450845]
[1733947023660,0.00293131,101080.0,101060.0,0.22450845]
[1733947024113,0.001,101080.0,101070.0,0.17850845]
[1733947024320,0.001,101080.0,101070.0,0.37610845]
[1733947024518,2.4814286,101130.0,101090.0,0.0782]
[1733947024734,1.99303847,101130.0,101100.0,0.0478]
[1733947025014,2.19081747,101130.0,101100.0,0.0478]
[1733947025429,1.91413847,101130.0,101100.0,0.0478]
[1733947025633,0.15,101120.0,101100.0,0.0478]
[1733947025839,0.15,101120.0,101100.0,0.04785487]
[1733947026247,0.15,101120.0,101100.0,0.04985487]
[1733947026657,0.15,101120.0,101100.0,0.04885487]
[1733947026887,0.159,101120.0,101100.0,0.04885487]
[1733947027086,0.00301652,101110.0,101100.0,0.04885487]
[1733947028439,0.00301652,101110.0,101100.0,0.04785487]
[1733947028815,0.01001652,101110.0,101100.0,0.04785487]
[1733947029166,0.007,101110.0,101100.0,0.34730205]
[1733947029414,1.57274206,101130.0,101100.0,0.34730205]
[1733947029617,1.57274206,101130.0,101100.0,0.10030845]
[1733947029958,8.6e-05,101120.0,101100.0,0.10030845]
[1733947030275,0.001,101110.0,101100.0,0.10030845]
[1733947030524,0.001,101110.0,101100.0,0.34730325]
[1733947031117,0.001,101110.0,101090.0,0.12367209]
[1733947031382,0.001,101110.0,101090.0,0.12383591]
[1733947031510,0.47492469,101120.0,101090.0,0.12383591]
[1733947031714,0.57523314,101120.0,101090.0,0.12383591]
[1733947031928,0.57523314,101120.0,101100.0,0.001]
[1733947032125,0.57523314,101120.0,101090.0,0.12956382]
[1733947032329,0.77503114,101120.0,101090.0,0.12956382]
[1733947033163,0.38543414,101120.0,101100.0,0.001]
[1733947033412,0.18163914,101120.0,101090.0,0.12956382]
[1733947033619,0.00503069,101120.0,101100.0,0.17560845]
[1733947033821,0.00503069,101120.0,101110.0,0.0467]
[1733947034027,0.002086,101120.0,101110.0,0.122]
[1733947034235,0.002086,101120.0,101110.0,0.46929095]
[1733947034438,1.39397637,101130.0,101110.0,0.89296304]
[1733947034439,1.32706236,101130.0,101110.0,0.89296304]
[1733947034645,0.004,101120.0,101110.0,0.99113726]
[1733947035050,1.32706236,101130.0,101110.0,0.99113726]
[1733947035436,0.002,101120.0,101110.0,0.99113726]
[1733947035873,1.32706236,101130.0,101110.0,0.99413726]
[1733947036074,1.32706236,101130.0,101110.0,0.99613726]
[1733947036254,1.32706236,101130.0,101120.0,0.32590845]
[1733947036662,1.30806305,101130.0,101120.0,0.47590845]
[1733947037693,1.30806305,101130.0,101120.0,0.52220845]
[1733947038134,1.30906305,101130.0,101120.0,0.52220845]
[1733947038747,1.31006305,101130.0,101120.0,0.52920845]
[1733947038982,1.30806305,101130.0,101120.0,0.52220845]
[1733947039393,1.24006304,101130.0,101120.0,0.52920845]
[1733947039600,1.24006304,101130.0,101120.0,0.1329]
[1733947039805,1.43782804,101130.0,101120.0,0.011]
[1733947040613,1.53813649,101130.0,101120.0,0.007]
[1733947040816,1.65066452,101130.0,101120.0,0.007]
[1733947041347,1.84744252,101130.0,101100.0,0.0817]
[1733947041588,1.73491449,101130.0,101100.0,0.0817]
[1733947041775,1.73891449,101130.0,101100.0,0.0817]
[1733947042253,1.74291449,101130.0,101100.0,0.081872]
[1733947042461,1.73691449,101130.0,101100.0,0.081872]
[1733947042662,1.93469249,101130.0,101100.0,0.081872]
[1733947042968,1.73891449,101130.0,101100.0,0.081872]
[1733947043319,1.94069249,101130.0,101100.0,0.081872]
[1733947043777,1.54513649,101130.0,101100.0,0.081872]
[1733947043989,1.54113649,101130.0,101100.0,0.081872]
[1733947044195,1.54313649,101130.0,101100.0,0.081872]
[1733947044400,1.47413648,101130.0,101100.0,0.081872]
[1733947044608,1.67190948,101130.0,101100.0,0.081872]
[1733947044814,1.47413648,101130.0,101100.0,0.081872]
[1733947045033,1.67191048,101130.0,101100.0,0.081872]
[1733947045240,1.88662986,101130.0,101100.0,0.081872]
[1733947045684,0.197785,101120.0,101100.0,0.081872]
[1733947045885,0.29809345,101120.0,101100.0,0.000172]
[1733947046062,0.10030845,101120.0,101100.0,0.000172]
[1733947046831,0.29809245,101120.0,101100.0,0.000172]
[1733947047030,0.273104,101110.0,101100.0,0.000172]
[1733947047279,0.37341245,101110.0,101100.0,0.000172]
[1733947047489,0.48594048,101110.0,101100.0,0.000172]
[1733947047624,0.48594048,101110.0,101100.0,9.792e-05]
[1733947048492,0.37341245,101110.0,101100.0,9.792e-05]
[1733947048731,0.37741245,101110.0,101100.0,9.792e-05]
[1733947048851,0.37941245,101110.0,101100.0,9.792e-05]
[1733947049307,0.31041244,101110.0,101100.0,9.792e-05]
[1733947049544,0.30841244,101110.0,101100.0,9.792e-05]
[1733947049721,0.31041244,101110.0,101100.0,9.792e-05]
[1733947050143,0.30411245,101110.0,101100.0,9.792e-05]
[1733947051612,0.32151679,101110.0,101100.0,9.792e-05]
[1733947053056,0.02340434,101110.0,101100.0,9.792e-05]
[1733947054258,0.01949034,101110.0,101100.0,9.792e-05]
[1733947054464,1.94268336,101130.0,101100.0,9.792e-05]
[1733947054660,0.00296296,101110.0,101100.0,9.792e-05]
[1733947055243,0.00296296,101110.0,101100.0,0.24710542]
[1733947055640,0.00296296,101110.0,101100.0,0.24810542]
[1733947055891,0.00296296,101110.0,101100.0,0.00109792]
[1733947056221,0.00296296,101110.0,101100.0,9.792e-05]
[1733947059378,0.197804,101110.0,101100.0,9.792e-05]
[1733947059626,0.29811245,101110.0,101100.0,9.792e-05]
[1733947061789,0.40211245,101110.0,101100.0,9.792e-05]
[1733947061989,0.29811245,101110.0,101100.0,9.792e-05]
[1733947062619,0.00296963,101110.0,101100.0,9.792e-05]
[1733947062818,0.20077363,101110.0,101100.0,9.792e-05]
[1733947063947,0.00296963,101110.0,101100.0,9.792e-05]
[1733947064366,1.26970618,101130.0,101100.0,9.792e-05]
[1733947064585,1.56779163,101130.0,101100.0,9.792e-05]
[1733947065008,1.76556763,101130.0,101100.0,9.792e-05]
[1733947065165,8.6e-05,101110.0,101100.0,9.792e-05]
[1733947065564,8.6e-05,101110.0,101100.0,0.32210342]
[1733947065995,0.00308467,101110.0,101100.0,0.32210342]
[1733947067370,0.00308467,101110.0,101100.0,0.32410342]
[1733947067576,0.00308467,101110.0,101100.0,0.32810342]
[1733947069744,8.6e-05,101110.0,101100.0,0.32810342]
[1733947070286,0.12887099,101120.0,101100.0,0.32410342]
[1733947070444,1.56779063,101130.0,101100.0,0.07709792]
[1733947070659,1.56779063,101130.0,101100.0,0.07509792]
[1733947070660,0.197785,101120.0,101100.0,0.07509792]
[1733947071168,1.76557063,101130.0,101100.0,0.07509792]
[1733947071591,1.77357063,101130.0,101100.0,0.07609792]
[1733947071927,1.77757063,101130.0,101100.0,0.07609792]
[1733947073455,1.77756763,101130.0,101100.0,0.12159792]
[1733947073684,0.197785,101120.0,101100.0,0.12159792]
[1733947074118,1.57979063,101130.0,101100.0,0.12159792]
[1733947074357,1.77757163,101130.0,101100.0,0.12159792]
[1733947074556,1.77357163,101130.0,101100.0,0.12159792]
[1733947074763,0.199786,101120.0,101100.0,0.12159792]
[1733947074965,0.49789145,101120.0,101100.0,0.07609792]
[1733947075175,0.197804,101110.0,101100.0,0.00109792]
[1733947075385,0.29811245,101110.0,101100.0,0.00109792]
[1733947076478,0.29811245,101110.0,101100.0,9.792e-05]
[1733947077750,0.29819845,101110.0,101100.0,9.792e-05]
[1733947079396,0.10039445,101110.0,101100.0,9.792e-05]
[1733947079660,0.29819845,101110.0,101100.0,9.792e-05]
[1733947080911,0.10039445,101110.0,101100.0,9.792e-05]
[1733947081416,8.6e-05,101110.0,101100.0,9.792e-05]
[1733947081611,0.01741075,101110.0,101100.0,9.792e-05]
[1733947084625,1.91484898,101130.0,101100.0,9.792e-05]
[1733947084863,0.30118816,101120.0,101100.0,9.792e-05]
[1733947085131,0.00289717,101110.0,101100.0,9.792e-05]
[1733947085370,0.00289717,101110.0,101100.0,0.32610492]
[1733947086843,0.00289717,101110.0,101100.0,0.07909792]
[1733947087329,0.00289717,101110.0,101100.0,0.08009792]
[1733947087568,0.00289717,101110.0,101100.0,0.07909792]
[1733947089181,0.20070117,101110.0,101100.0,0.07909792]
[1733947089383,0.476684,101120.0,101100.0,9.792e-05]
[1733947089606,0.57699245,101120.0,101100.0,9.792e-05]
[1733947089867,0.20070166,101110.0,101100.0,9.792e-05]
[1733947090249,0.30101011,101110.0,101100.0,9.792e-05]
[1733947091210,0.30101011,101110.0,101090.0,0.07886174]
[1733947091416,0.49882611,101110.0,101090.0,0.07886174]
[1733947091827,0.69664411,101110.0,101090.0,0.07886174]
[1733947092269,0.49882611,101110.0,101090.0,0.07886174]
[1733947092923,0.69664411,101110.0,101090.0,0.07886174]
[1733947094438,0.49884011,101110.0,101090.0,0.07886174]
[1733947094772,0.69665511,101110.0,101090.0,0.07886174]
[1733947095453,0.49883711,101110.0,101090.0,0.07886174]
[1733947095661,0.69665211,101110.0,101090.0,0.07886174]
[1733947096510,0.69665311,101110.0,101090.0,0.07886174]
[1733947096722,0.51978161,101110.0,101090.0,0.07886174]
[1733947097551,0.02384316,101110.0,101090.0,0.07886174]
[1733947097958,0.00289766,101110.0,101090.0,0.07886174]
[1733947098619,1.70120829,101130.0,101100.0,0.0828]
[1733947098828,1.94959574,101130.0,101100.0,0.0828]
[1733947099037,1.63909805,101130.0,101100.0,0.0828]
[1733947099241,0.197787,101120.0,101100.0,0.0828]
[1733947099646,0.395579,101120.0,101100.0,0.0828]
[1733947099873,0.49588745,101120.0,101100.0,0.0838]
[1733947100089,0.49588745,101120.0,101100.0,0.082972]
[1733947100319,0.69368645,101120.0,101100.0,0.082972]
[1733947100529,0.49988745,101120.0,101100.0,0.082972]
[1733947101141,0.69968645,101120.0,101100.0,0.082972]
[1733947101549,0.78840007,101120.0,101100.0,0.082972]
[1733947101773,0.59060107,101120.0,101100.0,0.082972]
[1733947102009,0.50188745,101120.0,101100.0,0.082972]
[1733947102642,0.50489289,101120.0,101100.0,0.082972]
[1733947102865,0.197804,101110.0,101100.0,0.082972]
[1733947103500,0.29811245,101110.0,101100.0,0.000172]
[1733947103707,0.197843,101090.0,101080.0,0.57144341]
[1733947103916,0.197843,101090.0,101080.0,0.57160757]
[1733947104145,0.29815145,101090.0,101080.0,0.57160757]
[1733947104367,0.22915144,101090.0,101080.0,0.57160757]
[1733947104572,0.10030845,101090.0,101080.0,0.57160757]
[1733947104809,0.29815145,101090.0,101080.0,0.57160757]
[1733947105009,0.29815145,101090.0,101080.0,0.58150057]
[1733947105423,0.29815145,101090.0,101080.0,0.57160757]
[1733947105851,0.29815145,101090.0,101080.0,0.57360757]
[1733947106334,0.29815145,101090.0,101080.0,0.57160757]
[1733947106547,0.30215145,101090.0,101080.0,0.57160757]
[1733947106761,0.30415145,101090.0,101080.0,0.57160757]
[1733947107809,0.10630845,101090.0,101080.0,0.58150057]
[1733947109501,0.006,101090.0,101080.0,0.58150057]
[1733947109715,0.203843,101090.0,101080.0,0.57160757]
[1733947109939,0.41667948,101090.0,101080.0,0.32460757]
[1733947110152,0.30415145,101090.0,101080.0,0.32460757]
[1733947110980,0.30415145,101090.0,101080.0,0.32477957]
[1733947111227,0.32585016,101090.0,101080.0,0.32477957]
[1733947113497,0.43837819,101090.0,101080.0,0.32477957]
[1733947113738,0.58837819,101090.0,101080.0,0.26505]
[1733947113959,0.61137819,101090.0,101080.0,0.26505]
[1733947114391,0.40753519,101090.0,101080.0,0.26505]
[1733947114595,0.60537819,101090.0,101080.0,0.26505]
[1733947114924,0.197863,101080.0,101060.0,0.10146]
[1733947115128,0.197863,101080.0,101060.0,0.10201223]
[1733947115327,0.197863,101080.0,101060.0,0.11190623]
[1733947115731,0.197863,101080.0,101060.0,0.11093792]
[1733947116472,0.197863,101080.0,101060.0,0.10104392]
[1733947116611,0.395735,101080.0,101060.0,0.10104392]
[1733947117002,0.197863,101080.0,101060.0,0.11093792]
[1733947117609,0.395733,101080.0,101060.0,0.11093792]
[1733947117772,0.197863,101080.0,101060.0,0.11093792]
[1733947119336,0.47283789,101090.0,101070.0,0.019788]
[1733947119552,0.04767344,101090.0,101080.0,0.009893]
[1733947119753,0.24552544,101090.0,101070.0,0.029681]
[1733947119936,0.44337944,101090.0,101070.0,0.019787]
[1733947120137,0.44337944,101090.0,101070.0,0.02968]
[1733947120494,0.44637944,101090.0,101070.0,0.02968]
[1733947121082,0.44837944,101090.0,101070.0,0.02968]
[1733947122537,0.44837944,101090.0,101070.0,0.029679]
[1733947123030,0.44837944,101090.0,101070.0,0.029851]
[1733947123231,0.44846544,101090.0,101070.0,0.010065]
[1733947123423,0.64631944,101090.0,101070.0,0.019958]
[1733947123631,0.64632444,101090.0,101070.0,0.010065]
[1733947123804,0.197863,101080.0,101070.0,0.010065]
[1733947123983,0.64632544,101090.0,101070.0,0.010065]
[1733947124497,0.57732543,101090.0,101070.0,0.019959]
[1733947124669,0.57532543,101090.0,101070.0,0.019959]
[1733947124853,0.57532543,101090.0,101070.0,0.020959]
[1733947125262,0.59696369,101090.0,101070.0,0.020959]
[1733947125877,0.59696369,101090.0,101070.0,0.019959]
[1733947127298,0.59896369,101090.0,101070.0,0.019959]
[1733947128461,0.40110369,101090.0,101080.0,0.0754]
[1733947128665,0.02967672,101090.0,101080.0,0.085293]
[1733947129333,0.02667672,101090.0,101080.0,0.085293]
[1733947129533,0.22451972,101090.0,101080.0,0.085293]
[1733947129747,0.22751972,101090.0,101080.0,0.0754]
[1733947130185,0.22551972,101090.0,101070.0,0.157951]
[1733947130393,0.35436271,101090.0,101070.0,0.157951]
[1733947130616,0.35436271,101090.0,101080.0,0.009893]
[1733947130617,0.02670485,101090.0,101080.0,0.009893]
[1733947131023,0.22254785,101090.0,101080.0,0.009893]
[1733947131207,0.22454785,101090.0,101080.0,0.009893]
[1733947131458,0.22454785,101090.0,101070.0,0.157951]
[1733947131663,0.42239885,101090.0,101070.0,0.138165]
[1733947131863,0.42039885,101090.0,101070.0,0.138165]
[1733947132070,0.62025385,101090.0,101070.0,0.090465]
[1733947132485,0.197863,101080.0,101070.0,0.080572]
[1733947132925,0.197863,101080.0,101070.0,0.000172]
[1733947133553,0.29817145,101080.0,101070.0,0.000172]
[1733947134415,0.10030845,101080.0,101070.0,0.000172]
[1733947134615,0.29817145,101080.0,101070.0,0.001172]
[1733947134804,0.29817145,101080.0,101070.0,0.002172]
[1733947135842,0.197863,101080.0,101070.0,0.002172]
[1733947137930,0.31039103,101080.0,101070.0,0.002172]
[1733947138607,0.41069948,101080.0,101070.0,0.002172]
[1733947139525,0.21283648,101080.0,101070.0,0.002172]
[1733947139731,0.41069948,101080.0,101070.0,0.002172]
[1733947139942,0.0247688,101090.0,101070.0,0.002172]
[1733947140153,0.0247688,101090.0,101080.0,0.092693]
[1733947141014,0.02179085,101090.0,101080.0,0.3397498]
[1733947141215,0.02379085,101090.0,101080.0,0.3397498]
[1733947141422,0.13931888,101090.0,101080.0,0.092693]
[1733947141645,0.02679085,101090.0,101080.0,0.092693]
[1733947142099,0.02679085,101090.0,101080.0,0.59005215]
[1733947142323,0.02679085,101090.0,101080.0,0.44005215]
[1733947142530,0.02479085,101090.0,101080.0,0.44005215]
[1733947142741,0.02679085,101090.0,101080.0,0.44005215]
[1733947142970,0.02679085,101090.0,101080.0,0.59005215]
[1733947144046,0.005086,101090.0,101080.0,0.59005215]
[1733947144508,0.2197292,101120.0,101090.0,0.092491]
[1733947144719,0.51783265,101120.0,101100.0,0.00989]
[1733947144931,0.51783265,101120.0,101100.0,0.01978]
[1733947145963,0.51783265,101120.0,101100.0,0.01994417]
[1733947146195,0.52482965,101120.0,101100.0,0.02094417]
[1733947146598,0.52882965,101120.0,101100.0,0.02094417]
[1733947147222,0.33103365,101120.0,101100.0,0.03083417]
[1733947148574,0.00300122,101110.0,101100.0,0.02094417]
[1733947149234,0.0329302,101120.0,101110.0,0.00989]
[1733947149453,0.0289302,101120.0,101110.0,0.00989]
[1733947149684,0.0219302,101120.0,101110.0,0.00989]
[1733947150108,1.29728798,101130.0,101110.0,0.029668]
[1733947150318,1.17579874,101130.0,101120.0,0.009889]
[1733947150531,1.37356374,101130.0,101120.0,0.009889]
[1733947150737,1.57132874,101130.0,101110.0,0.029667]
[1733947151368,1.37356374,101130.0,101110.0,0.029667]
[1733947151581,1.37356374,101130.0,101120.0,0.009889]
[1733947151982,1.37356374,101130.0,101110.0,0.029667]
[1733947152223,1.37356374,101130.0,101120.0,0.009889]
[1733947152431,1.37955399,101130.0,101120.0,0.009889]
[1733947152642,1.57731899,101130.0,101110.0,0.029667]
[1733947152841,1.58431899,101130.0,101120.0,0.001]
[1733947153047,1.58131899,101130.0,101120.0,0.001]
[1733947153486,1.38655399,101130.0,101120.0,0.010889]
[1733947153697,1.37955399,101130.0,101120.0,0.009889]
[1733947154527,1.18178899,101130.0,101120.0,0.009889]
[1733947154937,1.38655399,101130.0,101110.0,0.103278]
[1733947155374,1.18878899,101130.0,101120.0,0.009889]
[1733947155852,1.18178899,101130.0,101120.0,0.009889]
[1733947156080,1.18578899,101130.0,101120.0,0.010889]
[1733947156270,1.18878899,101130.0,101120.0,0.010889]